[Event "Titled Tuesday Blitz October 11 Late 2022"]
[White "Evdokimov, Alexey"]
[Black "Yuan, Qingyu"]
[WhiteFideId "24162450"]
[BlackFideId "8609772"]
[WhiteElo "2154"]
[BlackElo "2359"]
[Result "0-1"]
[Round "01"]
[TimeControl "180+1"]
[Date "2022.10.12"]
[WhiteClock "0:00:01"]
[BlackClock "0:00:06"]

1. e4 {[%clk 0:03:00]}  c6 {[%clk 0:03:00]} 2. d4 {[%clk 0:02:59]}  d5 {[%clk 0:03:00]} 3. e5 {[%clk 0:02:59]}  c5 {[%clk 0:03:01]} 4. Nf3 {[%clk 0:02:58]}  cxd4 {[%clk 0:03:01]} 5. Nxd4 {[%clk 0:02:57]}  Nc6 {[%clk 0:02:56]} 6. Bb5 {[%clk 0:02:52]}  Bd7 {[%clk 0:02:38]} 7. e6 {[%clk 0:02:47]}  fxe6 {[%clk 0:02:25]} 8. O-O {[%clk 0:02:47]}  Nf6 {[%clk 0:02:02]} 9. Re1 {[%clk 0:02:43]}  Nxd4 {[%clk 0:01:55]} 10. Bxd7+ {[%clk 0:02:41]}  Qxd7 {[%clk 0:01:51]} 11. Qxd4 {[%clk 0:02:42]}  a5 {[%clk 0:01:21]} 12. a4 {[%clk 0:02:38]}  g6 {[%clk 0:01:20]} 13. Bf4 {[%clk 0:02:31]}  Bg7 {[%clk 0:01:20]} 14. Be5 {[%clk 0:02:30]}  O-O {[%clk 0:01:20]} 15. Nc3 {[%clk 0:02:30]}  Rac8 {[%clk 0:01:15]} 16. Re2 {[%clk 0:02:19]}  Rc4 {[%clk 0:01:11]} 17. Qb6 {[%clk 0:02:18]}  Qc6 {[%clk 0:01:06]} 18. Qxa5 {[%clk 0:02:09]}  Ng4 {[%clk 0:00:54]} 19. Bxg7 {[%clk 0:02:05]}  Kxg7 {[%clk 0:00:55]} 20. h3 {[%clk 0:01:55]}  Nh6 {[%clk 0:00:47]} 21. Qb5 {[%clk 0:01:50]}  Nf5 {[%clk 0:00:39]} 22. Qxc6 {[%clk 0:01:41]}  Rxc6 {[%clk 0:00:40]} 23. Rd1 {[%clk 0:01:30]}  Rfc8 {[%clk 0:00:36]} 24. Rdd2 {[%clk 0:01:05]}  Kf7 {[%clk 0:00:36]} 25. Nb5 {[%clk 0:00:55]}  Rc5 {[%clk 0:00:26]} 26. c3 {[%clk 0:00:50]}  Rc4 {[%clk 0:00:20]} 27. b3 {[%clk 0:00:33]}  R4c5 {[%clk 0:00:21]} 28. g3 {[%clk 0:00:28]}  Nd6 {[%clk 0:00:20]} 29. Nxd6+ {[%clk 0:00:14]}  exd6 {[%clk 0:00:20]} 30. c4 {[%clk 0:00:09]}  dxc4 {[%clk 0:00:21]} 31. Rxd6 {[%clk 0:00:08]}  c3 {[%clk 0:00:16]} 32. Rd7+ {[%clk 0:00:08]}  Ke8 {[%clk 0:00:12]} 33. Rd1 {[%clk 0:00:05]}  c2 {[%clk 0:00:12]} 34. Rc1 {[%clk 0:00:04]}  Ke7 {[%clk 0:00:12]} 35. Kf1 {[%clk 0:00:04]}  Kd6 {[%clk 0:00:08]} 36. Ke1 {[%clk 0:00:04]}  e5 {[%clk 0:00:08]} 37. Rd2+ {[%clk 0:00:03]}  Ke6 {[%clk 0:00:07]} 38. Ke2 {[%clk 0:00:03]}  Rc3 {[%clk 0:00:08]} 39. b4 {[%clk 0:00:03]}  R8c4 {[%clk 0:00:07]} 40. b5 {[%clk 0:00:02]}  Rxa4 {[%clk 0:00:07]} 41. Rdxc2 {[%clk 0:00:02]}  Rxc2+ {[%clk 0:00:07]} 42. Rxc2 {[%clk 0:00:03]}  Rb4 {[%clk 0:00:08]} 43. Rc7 {[%clk 0:00:03]}  Rxb5 {[%clk 0:00:06]} 44. Rxh7 {[%clk 0:00:03]}  Rb3 {[%clk 0:00:05]} 45. Rh8 {[%clk 0:00:03]}  b5 {[%clk 0:00:05]} 46. Rb8 {[%clk 0:00:03]}  b4 {[%clk 0:00:05]} 47. Kd2 {[%clk 0:00:03]}  Kf5 {[%clk 0:00:06]} 48. Kc2 {[%clk 0:00:03]}  Rc3+ {[%clk 0:00:06]} 49. Kd2 {[%clk 0:00:02]}  Rb3 {[%clk 0:00:05]} 50. Kc2 {[%clk 0:00:02]}  Rf3 {[%clk 0:00:06]} 51. Rxb4 {[%clk 0:00:01]}  Rxf2+ {[%clk 0:00:06]} 0-1


[Site "https://www.chess.com"]

[Event "Titled Tuesday Blitz October 11 Late 2022"]
[White "Fernandez Siles, Luis"]
[Black "Gatineau, Yovann"]
[WhiteFideId "2209420"]
[BlackFideId "26028999"]
[WhiteElo "2186"]
[BlackElo "2275"]
[Result "1-0"]
[Round "01"]
[TimeControl "180+1"]
[Date "2022.10.12"]
[WhiteClock "0:00:08"]
[BlackClock "0:00:02"]

1. e4 {[%clk 0:02:59]}  e6 {[%clk 0:02:53]} 2. d4 {[%clk 0:02:58]}  d5 {[%clk 0:02:47]} 3. Nd2 {[%clk 0:02:57]}  dxe4 {[%clk 0:02:45]} 4. Nxe4 {[%clk 0:02:56]}  Nf6 {[%clk 0:02:46]} 5. Nxf6+ {[%clk 0:02:56]}  gxf6 {[%clk 0:02:47]} 6. Nf3 {[%clk 0:02:51]}  b6 {[%clk 0:02:46]} 7. Be2 {[%clk 0:02:33]}  Bb7 {[%clk 0:02:43]} 8. O-O {[%clk 0:02:34]}  Bd6 {[%clk 0:02:35]} 9. Be3 {[%clk 0:02:17]}  Nd7 {[%clk 0:02:30]} 10. Qd2 {[%clk 0:02:17]}  Qe7 {[%clk 0:01:59]} 11. a4 {[%clk 0:02:08]}  Rg8 {[%clk 0:01:40]} 12. a5 {[%clk 0:01:57]}  e5 {[%clk 0:01:35]} 13. Rfe1 {[%clk 0:01:37]}  f5 {[%clk 0:00:43]} 14. a6 {[%clk 0:01:24]}  Be4 {[%clk 0:00:34]} 15. Bd1 {[%clk 0:00:31]}  f4 {[%clk 0:00:22]} 16. dxe5 {[%clk 0:00:20]}  Nxe5 {[%clk 0:00:06]} 17. Bxf4 {[%clk 0:00:15]}  Bxf3 {[%clk 0:00:05]} 18. Bxe5 {[%clk 0:00:11]}  Rxg2+ {[%clk 0:00:03]} 19. Kf1 {[%clk 0:00:12]}  Bxe5 {[%clk 0:00:02]} 20. Bxf3 {[%clk 0:00:11]}  Rxh2 {[%clk 0:00:02]} 21. Qe3 {[%clk 0:00:08]} 1-0


[Site "https://www.chess.com"]

[Event "Titled Tuesday Blitz October 11 Late 2022"]
[White "Garagulya, Konstantin"]
[Black "Maksimovic, Bojan"]
[WhiteFideId "4128931"]
[BlackFideId "14408120"]
[WhiteElo "2329"]
[BlackElo "2447"]
[Result "0-1"]
[Round "01"]
[TimeControl "180+1"]
[Date "2022.10.11"]
[WhiteClock "0:01:08"]
[BlackClock "0:01:16"]

1. d4 {[%clk 0:02:59]}  Nf6 {[%clk 0:03:00]} 2. Nf3 {[%clk 0:02:59]}  d6 {[%clk 0:02:59]} 3. Nc3 {[%clk 0:02:58]}  Bf5 {[%clk 0:02:59]} 4. Nh4 {[%clk 0:02:57]}  Bd7 {[%clk 0:02:58]} 5. e4 {[%clk 0:02:57]}  g6 {[%clk 0:02:53]} 6. Nf3 {[%clk 0:02:56]}  Bg7 {[%clk 0:02:53]} 7. Bc4 {[%clk 0:02:56]}  Nc6 {[%clk 0:02:51]} 8. e5 {[%clk 0:02:56]}  dxe5 {[%clk 0:02:50]} 9. dxe5 {[%clk 0:02:57]}  Ng4 {[%clk 0:02:51]} 10. Bxf7+ {[%clk 0:02:40]}  Kxf7 {[%clk 0:02:48]} 11. Ng5+ {[%clk 0:02:41]}  Ke8 {[%clk 0:02:09]} 12. e6 {[%clk 0:02:39]}  Bxe6 {[%clk 0:02:09]} 13. Nxe6 {[%clk 0:02:22]}  Bxc3+ {[%clk 0:02:07]} 14. bxc3 {[%clk 0:02:05]}  Qxd1+ {[%clk 0:02:06]} 15. Kxd1 {[%clk 0:02:06]}  Nxf2+ {[%clk 0:01:49]} 16. Ke2 {[%clk 0:02:06]}  Nxh1 {[%clk 0:01:47]} 17. Nxc7+ {[%clk 0:02:07]}  Kd7 {[%clk 0:01:35]} 18. Nxa8 {[%clk 0:02:07]}  Rxa8 {[%clk 0:01:35]} 19. Be3 {[%clk 0:02:05]}  Rf8 {[%clk 0:01:32]} 20. Rxh1 {[%clk 0:02:04]}  Rf5 {[%clk 0:01:32]} 21. Rf1 {[%clk 0:01:52]}  Ke6 {[%clk 0:01:20]} 22. Rb1 {[%clk 0:01:34]}  b6 {[%clk 0:01:20]} 23. h3 {[%clk 0:01:20]}  Ra5 {[%clk 0:01:19]} 24. Ra1 {[%clk 0:01:18]}  Ra3 {[%clk 0:01:17]} 25. Kd3 {[%clk 0:01:14]}  Ne5+ {[%clk 0:01:17]} 26. Kd4 {[%clk 0:01:14]}  Ra4+ {[%clk 0:01:17]} 27. c4 {[%clk 0:01:08]}  Rxc4# {[%clk 0:01:16]} 0-1


[Site "https://www.chess.com"]

[Event "Titled Tuesday Blitz October 11 Late 2022"]
[White "Gasparyan, David"]
[Black "Vlassov, Nikolai"]
[WhiteFideId "13311980"]
[BlackFideId "4103360"]
[WhiteElo "2345"]
[BlackElo "2324"]
[Result "0-1"]
[Round "01"]
[TimeControl "180+1"]
[Date "2022.10.12"]
[WhiteClock "0:01:06"]
[BlackClock "0:01:20"]

1. d4 {[%clk 0:02:59]}  Nf6 {[%clk 0:02:59]} 2. Nf3 {[%clk 0:02:58]}  e6 {[%clk 0:02:59]} 3. e3 {[%clk 0:02:57]}  c5 {[%clk 0:02:58]} 4. c3 {[%clk 0:02:57]}  b6 {[%clk 0:02:59]} 5. Bd3 {[%clk 0:02:57]}  Bb7 {[%clk 0:02:59]} 6. Nbd2 {[%clk 0:02:57]}  Be7 {[%clk 0:03:00]} 7. O-O {[%clk 0:02:57]}  d6 {[%clk 0:03:01]} 8. Qe2 {[%clk 0:02:57]}  Nbd7 {[%clk 0:03:01]} 9. e4 {[%clk 0:02:53]}  Qc7 {[%clk 0:03:01]} 10. Re1 {[%clk 0:02:53]}  h6 {[%clk 0:03:00]} 11. Nc4 {[%clk 0:02:51]}  b5 {[%clk 0:02:55]} 12. Ncd2 {[%clk 0:02:44]}  c4 {[%clk 0:02:55]} 13. Bc2 {[%clk 0:02:45]}  g5 {[%clk 0:02:55]} 14. e5 {[%clk 0:02:41]}  dxe5 {[%clk 0:02:54]} 15. dxe5 {[%clk 0:02:41]}  Nd5 {[%clk 0:02:51]} 16. Ne4 {[%clk 0:02:40]}  a6 {[%clk 0:02:44]} 17. Ng3 {[%clk 0:02:29]}  O-O-O {[%clk 0:02:34]} 18. a4 {[%clk 0:02:22]}  Nf4 {[%clk 0:02:34]} 19. Bxf4 {[%clk 0:02:22]}  gxf4 {[%clk 0:02:34]} 20. Nh5 {[%clk 0:02:14]}  Rhg8 {[%clk 0:02:33]} 21. axb5 {[%clk 0:02:11]}  axb5 {[%clk 0:02:32]} 22. Nxf4 {[%clk 0:02:11]}  Qc6 {[%clk 0:02:32]} 23. Be4 {[%clk 0:02:10]}  Qxe4 {[%clk 0:02:28]} 24. Qxe4 {[%clk 0:02:11]}  Bxe4 {[%clk 0:02:28]} 25. Rxe4 {[%clk 0:02:12]}  Nc5 {[%clk 0:02:26]} 26. Rd4 {[%clk 0:02:11]}  Nb3 {[%clk 0:02:21]} 27. Ra8+ {[%clk 0:02:05]}  Kb7 {[%clk 0:02:16]} 28. Raxd8 {[%clk 0:02:05]}  Rxd8 {[%clk 0:02:12]} 29. Rxd8 {[%clk 0:02:03]}  Bxd8 {[%clk 0:02:13]} 30. Ne2 {[%clk 0:01:59]}  Bb6 {[%clk 0:02:12]} 31. Kf1 {[%clk 0:01:49]}  Nc5 {[%clk 0:02:12]} 32. Ned4 {[%clk 0:01:48]}  Ka6 {[%clk 0:02:06]} 33. Ne1 {[%clk 0:01:46]}  Na4 {[%clk 0:02:04]} 34. Nec2 {[%clk 0:01:39]}  Nxb2 {[%clk 0:02:01]} 35. Nb4+ {[%clk 0:01:39]}  Ka5 {[%clk 0:02:02]} 36. Ndc6+ {[%clk 0:01:35]}  Ka4 {[%clk 0:02:02]} 37. Ke2 {[%clk 0:01:34]}  Kb3 {[%clk 0:01:58]} 38. Ne7 {[%clk 0:01:26]}  Kxc3 {[%clk 0:01:54]} 39. Ned5+ {[%clk 0:01:27]}  exd5 {[%clk 0:01:49]} 40. Nxd5+ {[%clk 0:01:28]}  Kb3 {[%clk 0:01:38]} 41. Nxb6 {[%clk 0:01:29]}  c3 {[%clk 0:01:39]} 42. Nd7 {[%clk 0:01:14]}  c2 {[%clk 0:01:30]} 43. Nc5+ {[%clk 0:01:10]}  Kc4 {[%clk 0:01:18]} 44. Kd2 {[%clk 0:01:05]}  Kxc5 {[%clk 0:01:18]} 45. Kxc2 {[%clk 0:01:05]}  Nc4 {[%clk 0:01:18]} 46. f4 {[%clk 0:01:04]}  Ne3+ {[%clk 0:01:19]} 47. Kd3 {[%clk 0:01:04]}  Nxg2 {[%clk 0:01:19]} 48. Ke4 {[%clk 0:01:05]}  b4 {[%clk 0:01:19]} 49. Kf5 {[%clk 0:01:05]}  b3 {[%clk 0:01:19]} 50. Kf6 {[%clk 0:01:06]}  Nxf4 {[%clk 0:01:19]} 51. Kxf7 {[%clk 0:01:06]}  b2 {[%clk 0:01:20]} 0-1


[Site "https://www.chess.com"]

[Event "Titled Tuesday Blitz October 11 Late 2022"]
[White "Gledura, Benjamin"]
[Black "Krzywda, Andrzej"]
[WhiteFideId "712779"]
[BlackFideId "1114565"]
[WhiteElo "2537"]
[BlackElo "2149"]
[Result "1-0"]
[Round "01"]
[TimeControl "180+1"]
[Date "2022.10.12"]
[WhiteClock "0:00:05"]
[BlackClock "0:00:03"]

1. d4 {[%clk 0:03:00]}  Nf6 {[%clk 0:02:59]} 2. Nf3 {[%clk 0:03:00]}  e6 {[%clk 0:02:56]} 3. g3 {[%clk 0:02:59]}  b6 {[%clk 0:02:55]} 4. Bg2 {[%clk 0:02:59]}  Bb7 {[%clk 0:02:56]} 5. c4 {[%clk 0:02:59]}  c5 {[%clk 0:02:56]} 6. d5 {[%clk 0:02:58]}  exd5 {[%clk 0:02:54]} 7. Nh4 {[%clk 0:02:58]}  g6 {[%clk 0:02:54]} 8. Nc3 {[%clk 0:02:55]}  Bg7 {[%clk 0:02:54]} 9. Nxd5 {[%clk 0:02:51]}  Nxd5 {[%clk 0:02:52]} 10. Bxd5 {[%clk 0:02:51]}  Bxd5 {[%clk 0:02:47]} 11. Qxd5 {[%clk 0:02:51]}  Nc6 {[%clk 0:02:46]} 12. O-O {[%clk 0:02:32]}  O-O {[%clk 0:02:45]} 13. Rd1 {[%clk 0:02:32]}  Re8 {[%clk 0:02:29]} 14. Be3 {[%clk 0:02:25]}  Nb4 {[%clk 0:02:18]} 15. Qd2 {[%clk 0:02:23]}  Qf6 {[%clk 0:01:55]} 16. a3 {[%clk 0:02:05]}  Nc6 {[%clk 0:01:46]} 17. Rab1 {[%clk 0:02:05]}  Nd4 {[%clk 0:01:15]} 18. Bxd4 {[%clk 0:02:04]}  Qxd4 {[%clk 0:01:14]} 19. Qxd4 {[%clk 0:01:59]}  cxd4 {[%clk 0:01:02]} 20. Kf1 {[%clk 0:01:57]}  Rac8 {[%clk 0:01:01]} 21. b3 {[%clk 0:01:50]}  d5 {[%clk 0:00:48]} 22. cxd5 {[%clk 0:01:43]}  Rcd8 {[%clk 0:00:48]} 23. Ng2 {[%clk 0:01:41]}  Rxd5 {[%clk 0:00:47]} 24. Nf4 {[%clk 0:01:41]}  Ra5 {[%clk 0:00:45]} 25. a4 {[%clk 0:01:40]}  b5 {[%clk 0:00:45]} 26. axb5 {[%clk 0:01:33]}  Rxb5 {[%clk 0:00:46]} 27. Nd3 {[%clk 0:01:33]}  a5 {[%clk 0:00:46]} 28. Rdc1 {[%clk 0:01:30]}  Reb8 {[%clk 0:00:45]} 29. Ra1 {[%clk 0:01:29]}  h5 {[%clk 0:00:44]} 30. h4 {[%clk 0:01:27]}  Bf8 {[%clk 0:00:35]} 31. Rc4 {[%clk 0:01:26]}  Bg7 {[%clk 0:00:32]} 32. Ra2 {[%clk 0:01:23]}  Rxb3 {[%clk 0:00:28]} 33. Rxa5 {[%clk 0:01:22]}  Rc3 {[%clk 0:00:28]} 34. Rb4 {[%clk 0:01:15]}  Rxb4 {[%clk 0:00:22]} 35. Nxb4 {[%clk 0:01:15]}  Rc1+ {[%clk 0:00:21]} 36. Kg2 {[%clk 0:01:15]}  Rb1 {[%clk 0:00:21]} 37. Nd3 {[%clk 0:01:15]}  Kf8 {[%clk 0:00:17]} 38. Ra7 {[%clk 0:01:14]}  Bf6 {[%clk 0:00:15]} 39. Kf3 {[%clk 0:01:14]}  Rb3 {[%clk 0:00:14]} 40. Ke4 {[%clk 0:01:13]}  Rc3 {[%clk 0:00:14]} 41. Nf4 {[%clk 0:01:10]}  Rc2 {[%clk 0:00:11]} 42. Rd7 {[%clk 0:01:00]}  Bg7 {[%clk 0:00:10]} 43. Kf3 {[%clk 0:00:58]}  Kg8 {[%clk 0:00:10]} 44. Rd8+ {[%clk 0:00:58]}  Kh7 {[%clk 0:00:10]} 45. Nd3 {[%clk 0:00:55]}  Rc3 {[%clk 0:00:09]} 46. Rd7 {[%clk 0:00:52]}  Kg8 {[%clk 0:00:09]} 47. Ke4 {[%clk 0:00:50]}  Rc2 {[%clk 0:00:09]} 48. Nf4 {[%clk 0:00:50]}  Ra2 {[%clk 0:00:09]} 49. Rd8+ {[%clk 0:00:46]}  Kh7 {[%clk 0:00:08]} 50. Rc8 {[%clk 0:00:46]}  Rb2 {[%clk 0:00:08]} 51. Kd3 {[%clk 0:00:46]}  Rb3+ {[%clk 0:00:08]} 52. Kc2 {[%clk 0:00:43]}  Ra3 {[%clk 0:00:08]} 53. Nd3 {[%clk 0:00:42]}  Ra2+ {[%clk 0:00:08]} 54. Kd1 {[%clk 0:00:41]}  Ra1+ {[%clk 0:00:08]} 55. Rc1 {[%clk 0:00:41]}  Ra2 {[%clk 0:00:08]} 56. Rc7 {[%clk 0:00:39]}  Ra1+ {[%clk 0:00:08]} 57. Kd2 {[%clk 0:00:38]}  Ra2+ {[%clk 0:00:08]} 58. Rc2 {[%clk 0:00:38]}  Ra1 {[%clk 0:00:08]} 59. Nb4 {[%clk 0:00:33]}  Ra4 {[%clk 0:00:07]} 60. Nc6 {[%clk 0:00:31]}  Ra1 {[%clk 0:00:07]} 61. Nb4 {[%clk 0:00:28]}  Rf1 {[%clk 0:00:05]} 62. Nd3 {[%clk 0:00:28]}  Ra1 {[%clk 0:00:05]} 63. Rc7 {[%clk 0:00:26]}  Ra2+ {[%clk 0:00:05]} 64. Kd1 {[%clk 0:00:23]}  Ra1+ {[%clk 0:00:06]} 65. Rc1 {[%clk 0:00:22]}  Ra2 {[%clk 0:00:06]} 66. Rb1 {[%clk 0:00:22]}  Ra3 {[%clk 0:00:06]} 67. Nf4 {[%clk 0:00:18]}  Ra2 {[%clk 0:00:05]} 68. Nh3 {[%clk 0:00:18]}  Ra3 {[%clk 0:00:05]} 69. Ng5+ {[%clk 0:00:18]}  Kg8 {[%clk 0:00:03]} 70. Rb8+ {[%clk 0:00:18]}  Bf8 {[%clk 0:00:03]} 71. Nh7 {[%clk 0:00:17]}  Kxh7 {[%clk 0:00:03]} 72. Rxf8 {[%clk 0:00:17]}  Kg7 {[%clk 0:00:01]} 73. Rc8 {[%clk 0:00:18]}  d3 {[%clk 0:00:01]} 74. e4 {[%clk 0:00:09]}  Ra2 {[%clk 0:00:01]} 75. Ke1 {[%clk 0:00:09]}  d2+ {[%clk 0:00:01]} 76. Ke2 {[%clk 0:00:09]}  Ra4 {[%clk 0:00:01]} 77. f3 {[%clk 0:00:08]}  Ra2 {[%clk 0:00:01]} 78. Rd8 {[%clk 0:00:08]}  Kf6 {[%clk 0:00:01]} 79. Rxd2 {[%clk 0:00:07]}  Ra3 {[%clk 0:00:02]} 80. Kf2 {[%clk 0:00:06]}  Rb3 {[%clk 0:00:02]} 81. Rd5 {[%clk 0:00:06]}  Ra3 {[%clk 0:00:02]} 82. Rb5 {[%clk 0:00:05]}  Ra2+ {[%clk 0:00:02]} 83. Ke3 {[%clk 0:00:04]}  Ra3+ {[%clk 0:00:03]} 84. Kf4 {[%clk 0:00:05]}  Ra2 {[%clk 0:00:03]} 85. Rb7 {[%clk 0:00:03]}  Kg7 {[%clk 0:00:03]} 86. e5 {[%clk 0:00:04]}  Ra4+ {[%clk 0:00:04]} 87. Kg5 {[%clk 0:00:04]}  Ra5 {[%clk 0:00:03]} 88. f4 {[%clk 0:00:03]}  Rc5 {[%clk 0:00:03]} 89. g4 {[%clk 0:00:03]}  hxg4 {[%clk 0:00:03]} 90. Kxg4 {[%clk 0:00:03]}  Rc3 {[%clk 0:00:02]} 91. h5 {[%clk 0:00:03]}  gxh5+ {[%clk 0:00:02]} 92. Kxh5 {[%clk 0:00:04]}  Re3 {[%clk 0:00:02]} 93. Kg5 {[%clk 0:00:04]}  Re1 {[%clk 0:00:02]} 94. Kf5 {[%clk 0:00:05]}  Re2 {[%clk 0:00:03]} 95. Re7 {[%clk 0:00:05]}  Re1 {[%clk 0:00:03]} 96. e6 {[%clk 0:00:05]} 1-0


[Site "https://www.chess.com"]

[Event "Titled Tuesday Blitz October 11 Late 2022"]
[White "Godzwon, Iwo"]
[Black "Zhukov, Maksim"]
[WhiteFideId "21802483"]
[BlackFideId "34181790"]
[WhiteElo "2284"]
[BlackElo "1929"]
[Result "1-0"]
[Round "01"]
[TimeControl "180+1"]
[Date "2022.10.12"]
[WhiteClock "0:00:49"]
[BlackClock "0:01:04"]

1. e4 {[%clk 0:03:00]}  d5 {[%clk 0:02:46]} 2. exd5 {[%clk 0:02:42]}  Nf6 {[%clk 0:02:42]} 3. d4 {[%clk 0:02:40]}  Nxd5 {[%clk 0:02:42]} 4. Nf3 {[%clk 0:02:40]}  Bg4 {[%clk 0:02:42]} 5. Be2 {[%clk 0:02:39]}  e6 {[%clk 0:02:42]} 6. O-O {[%clk 0:02:39]}  Be7 {[%clk 0:02:42]} 7. c4 {[%clk 0:02:40]}  Nb6 {[%clk 0:02:43]} 8. Nc3 {[%clk 0:02:39]}  O-O {[%clk 0:02:42]} 9. c5 {[%clk 0:02:40]}  Nd5 {[%clk 0:02:42]} 10. Ne5 {[%clk 0:02:39]}  Bxe2 {[%clk 0:02:42]} 11. Qxe2 {[%clk 0:02:40]}  Nd7 {[%clk 0:02:42]} 12. Nc4 {[%clk 0:02:38]}  b6 {[%clk 0:02:38]} 13. cxb6 {[%clk 0:01:58]}  N7xb6 {[%clk 0:02:38]} 14. Ne5 {[%clk 0:01:57]}  Bf6 {[%clk 0:02:33]} 15. Ne4 {[%clk 0:01:54]}  Bxe5 {[%clk 0:02:23]} 16. dxe5 {[%clk 0:01:55]}  h6 {[%clk 0:02:17]} 17. b3 {[%clk 0:01:53]}  Qe7 {[%clk 0:02:11]} 18. a4 {[%clk 0:01:49]}  Rfd8 {[%clk 0:02:07]} 19. a5 {[%clk 0:01:48]}  Nd7 {[%clk 0:02:05]} 20. Ba3 {[%clk 0:01:47]}  Qh4 {[%clk 0:02:05]} 21. g3 {[%clk 0:01:42]}  Qh3 {[%clk 0:02:02]} 22. f4 {[%clk 0:01:36]}  Rab8 {[%clk 0:01:57]} 23. Rf3 {[%clk 0:01:29]}  Rb5 {[%clk 0:01:53]} 24. Qxb5 {[%clk 0:01:26]}  Qg4 {[%clk 0:01:43]} 25. Qf1 {[%clk 0:01:23]}  Qf5 {[%clk 0:01:42]} 26. Re1 {[%clk 0:01:21]}  Rb8 {[%clk 0:01:40]} 27. Nc5 {[%clk 0:01:17]}  Nxc5 {[%clk 0:01:40]} 28. Bxc5 {[%clk 0:01:18]}  Qc2 {[%clk 0:01:39]} 29. b4 {[%clk 0:01:17]}  Nxb4 {[%clk 0:01:38]} 30. Bxb4 {[%clk 0:01:16]}  Rxb4 {[%clk 0:01:37]} 31. Qd3 {[%clk 0:01:16]}  Qc5+ {[%clk 0:01:32]} 32. Kg2 {[%clk 0:01:00]}  Qxa5 {[%clk 0:01:32]} 33. f5 {[%clk 0:00:59]}  exf5 {[%clk 0:01:25]} 34. Qxf5 {[%clk 0:00:56]}  Rb2+ {[%clk 0:01:25]} 35. Rf2 {[%clk 0:00:47]}  Qd5+ {[%clk 0:01:13]} 36. Qf3 {[%clk 0:00:45]}  Rxf2+ {[%clk 0:01:07]} 37. Kxf2 {[%clk 0:00:44]}  Qd2+ {[%clk 0:01:07]} 38. Re2 {[%clk 0:00:45]}  Qd4+ {[%clk 0:01:07]} 39. Qe3 {[%clk 0:00:45]}  Qd5 {[%clk 0:01:07]} 40. e6 {[%clk 0:00:46]}  Qf5+ {[%clk 0:01:05]} 41. Kg2 {[%clk 0:00:46]}  Qd5+ {[%clk 0:01:02]} 42. Qe4 {[%clk 0:00:47]}  fxe6 {[%clk 0:01:01]} 43. Qxd5 {[%clk 0:00:46]}  exd5 {[%clk 0:01:02]} 44. Re7 {[%clk 0:00:47]}  c5 {[%clk 0:01:02]} 45. Rxa7 {[%clk 0:00:46]}  c4 {[%clk 0:01:02]} 46. Ra5 {[%clk 0:00:47]}  d4 {[%clk 0:01:02]} 47. Rc5 {[%clk 0:00:47]}  c3 {[%clk 0:01:03]} 48. Kf3 {[%clk 0:00:47]}  Kf7 {[%clk 0:01:03]} 49. Ke4 {[%clk 0:00:48]}  Ke6 {[%clk 0:01:04]} 50. Kxd4 {[%clk 0:00:48]}  Kd6 {[%clk 0:01:04]} 51. Rxc3 {[%clk 0:00:49]} 1-0


[Site "https://www.chess.com"]

[Event "Titled Tuesday Blitz October 11 Late 2022"]
[White "Gokerkan, Cem Kaan"]
[Black "Melikhov, Evgeny V."]
[WhiteFideId "6336760"]
[BlackFideId "4122046"]
[WhiteElo "2799"]
[BlackElo "2434"]
[Result "1-0"]
[Round "01"]
[TimeControl "180+1"]
[Date "2022.10.12"]
[WhiteClock "0:01:58"]
[BlackClock "0:00:01"]

1. c4 {[%clk 0:03:00]}  e6 {[%clk 0:02:54]} 2. d4 {[%clk 0:02:59]}  d5 {[%clk 0:02:54]} 3. Nc3 {[%clk 0:03:00]}  Bb4 {[%clk 0:02:53]} 4. cxd5 {[%clk 0:02:59]}  exd5 {[%clk 0:02:53]} 5. Nf3 {[%clk 0:02:57]}  Nf6 {[%clk 0:02:53]} 6. Bg5 {[%clk 0:02:57]}  h6 {[%clk 0:02:53]} 7. Bxf6 {[%clk 0:02:56]}  Qxf6 {[%clk 0:02:52]} 8. e3 {[%clk 0:02:56]}  O-O {[%clk 0:02:51]} 9. Rc1 {[%clk 0:02:53]}  c6 {[%clk 0:02:35]} 10. Bd3 {[%clk 0:02:50]}  Bf5 {[%clk 0:02:29]} 11. Bxf5 {[%clk 0:02:49]}  Qxf5 {[%clk 0:02:28]} 12. Qb3 {[%clk 0:02:50]}  Bxc3+ {[%clk 0:02:26]} 13. Rxc3 {[%clk 0:02:48]}  Qc8 {[%clk 0:02:18]} 14. O-O {[%clk 0:02:48]}  Nd7 {[%clk 0:02:17]} 15. Qc2 {[%clk 0:02:43]}  Nf6 {[%clk 0:02:10]} 16. Nd2 {[%clk 0:02:39]}  Re8 {[%clk 0:02:06]} 17. b4 {[%clk 0:02:39]}  a6 {[%clk 0:02:04]} 18. a4 {[%clk 0:02:39]}  Qg4 {[%clk 0:01:39]} 19. b5 {[%clk 0:02:31]}  cxb5 {[%clk 0:01:31]} 20. axb5 {[%clk 0:02:32]}  a5 {[%clk 0:01:31]} 21. Nf3 {[%clk 0:02:27]}  Ne4 {[%clk 0:01:13]} 22. Rc7 {[%clk 0:02:26]}  Ng5 {[%clk 0:00:39]} 23. Nxg5 {[%clk 0:02:22]}  Qxg5 {[%clk 0:00:38]} 24. Rxb7 {[%clk 0:02:18]}  a4 {[%clk 0:00:31]} 25. b6 {[%clk 0:02:16]}  a3 {[%clk 0:00:30]} 26. Qc7 {[%clk 0:02:13]}  a2 {[%clk 0:00:16]} 27. Qxf7+ {[%clk 0:02:13]}  Kh7 {[%clk 0:00:13]} 28. Ra7 {[%clk 0:02:04]}  Rxa7 {[%clk 0:00:03]} 29. bxa7 {[%clk 0:02:03]}  Ra8 {[%clk 0:00:01]} 30. Qb7 {[%clk 0:01:58]} 1-0


[Site "https://www.chess.com"]